{"text_format":"1","workbook":"xlsx","n_sheets":5,"sheets":["ЗАДАНИЯ","Отчет Сентябрь","Сметы Сентябрь","Отчет Октябрь","Сметы Октябрь"],"not_rendered":{"charts":0,"images":0,"macros":1,"external_links":0,"defined_names":13,"comments":0,"pivot_tables":0},"unopened":[],"bounds":{"document_bytes":16777216,"sheet_cells":100000,"rows_first":2000,"rows_last":500,"rows_between":2000,"halvings":0,"cell_chars":16384,"cell_head_chars":4096},"cells_cut":0,"cells_raw":0,"read":"whole","date_system":"1900"}

{"sheet":"ЗАДАНИЯ","index":0,"n_rows":5,"n_cols":14,"rows_kept":5,"cut":false,"hidden":false,"merged":[[1,0,1,13],[0,0,0,13]]}
["2015"]
["СЕНТЯБРЬ 2015"]
["№п/п","Дата регистрации","Цех, отдел","Наименование","Основание","Срок выполнения","Исполнитель","% Выполнения","Дата выдачи заказчику","№ Проекта","Примечание","Объем работ","Выдача заданий смежным группам","В отчет за месяц"]
[1,null,null,null,null,null,"ИВАНОВ"]
[{"$f":"SUM(A4,1)","v":2}]

{"sheet":"Отчет Сентябрь","index":1,"n_rows":10,"n_cols":9,"rows_kept":10,"cut":false,"hidden":false,"merged":[[4,7,4,9],[7,1,7,9],[4,1,4,2],[4,3,5,3],[4,4,5,4],[4,5,5,5],[4,6,5,6]]}
[]
[]
[]
["Отчёт группы генплана, транспорта и геодезических работ за сентябрь 2015г."]
[null,"Основание",null,"Статья затрат","Наименование работы","№ проекта","№ сопроводительного документа и дата выдачи заказчику","Примечание "]
["№ п/п","Номер задания, дата","Заказчик",null,null,null,null," Процент выполнения от плана, причина отклонения)","Исполнитель\n\nСмета\n\nФормат"]
[1,2,3,4,5,6,7,8,9]
[null,"Группа генплана, транспорта и геодезических работ"]
[null,{"$f":"IF(ЗАДАНИЯ!N4=\"сентябрь\",ЗАДАНИЯ!E4,\"НЕТ\")","v":"НЕТ"},{"$f":"IF(ЗАДАНИЯ!N4=\"сентябрь\",ЗАДАНИЯ!C4,\"НЕТ\")","v":"НЕТ"},null,{"$f":"IF(ЗАДАНИЯ!N4=\"сентябрь\",ЗАДАНИЯ!D4,\"НЕТ\")","v":"НЕТ"},{"$f":"IF(ЗАДАНИЯ!N4=\"сентябрь\",ЗАДАНИЯ!J4,\"НЕТ\")","v":"НЕТ"},{"$f":"IF(ЗАДАНИЯ!N4=\"сентябрь\",ЗАДАНИЯ!I4,\"НЕТ\")","v":"НЕТ"},{"$f":"IF(ЗАДАНИЯ!N4=\"сентябрь\",ЗАДАНИЯ!H4,\"НЕТ\")","v":"НЕТ"},{"$f":"CONCATENATE(ЗАДАНИЯ!G4,\" \n\",'Сметы Сентябрь'!Q9)","v":"ИВАНОВ \n1147,38"}]
[null,{"$f":"IF(ЗАДАНИЯ!N5=\"сентябрь\",ЗАДАНИЯ!E5,\"НЕТ\")","v":"НЕТ"},{"$f":"IF(ЗАДАНИЯ!N5=\"сентябрь\",ЗАДАНИЯ!C5,\"НЕТ\")","v":"НЕТ"},null,{"$f":"IF(ЗАДАНИЯ!N5=\"сентябрь\",ЗАДАНИЯ!D5,\"НЕТ\")","v":"НЕТ"},{"$f":"IF(ЗАДАНИЯ!N5=\"сентябрь\",ЗАДАНИЯ!#REF!,\"НЕТ\")","v":"НЕТ"},{"$f":"IF(ЗАДАНИЯ!N5=\"сентябрь\",ЗАДАНИЯ!I5,\"НЕТ\")","v":"НЕТ"},{"$f":"IF(ЗАДАНИЯ!N5=\"сентябрь\",ЗАДАНИЯ!H5,\"НЕТ\")","v":"НЕТ"},{"$f":"CONCATENATE(ЗАДАНИЯ!G5,\" \n\",'Сметы Сентябрь'!Q10)","v":" \n"}]

{"sheet":"Сметы Сентябрь","index":2,"n_rows":9,"n_cols":21,"rows_kept":9,"cut":false,"hidden":false,"merged":[[5,0,5,19]]}
[null,null,null,null,null,null,null,null," ",null," "," "," "," ",null,null,"Исполнитель","Формат","Стоимость по СБЦ(р)","Стоимость по ЕНВ и Р"]
[null,null,null,null,null,null,null,null," ",null," "," "," "," ",null,null,"1. У",null,{"$f":"SUM(R9:R22)","v":0},0]
[null,null,null,null,null,null,null,null," ",null," "," "," "," ",null,null,"2. Д",null,{"$f":"SUM(S9:S22)","v":0},0]
[null,null,null,null,null,null,null,null," ",null," "," "," "," ",null,null,"3. С",null,{"$f":"SUM(T9:T22)","v":0},0]
[null,null,null,null,null,null,null,null," ",null," "," "," "," ",null,null,"Итого по гр.:",{"$f":"SUM(S2:S4,T2:T4)","v":0}]
["СМЕТЫ СЕНТЯБРЬ 2015"]
[null,null,null,null,null,null,null,null," ",null," "," "," "," ",null,null,{"$f":"SUM(Q9:Q24)","v":1147.3800000000001},{"$f":"SUM(R9:R22)","v":0},{"$f":"SUM(S9:S22)","v":0},{"$f":"SUM(T9:T22)","v":0}]
["№","Объект"," Наименование работ","Измерит.","Кол-во","Цена (категория сложности III)","Сумма в ценах 2001г.","Обоснование"," k1","k2"," k3"," k4","  k5"," k6"," k7","Пояснения","Сметная стоимость = (сумма в ценах 2001г.)*k1*k2*k3*k4*k5*k6*k7 ","У","Д","С","Тип"]
[1,{"$f":"CONCATENATE('Отчет Сентябрь'!C9,\"\n\",'Отчет Сентябрь'!E9)","v":"НЕТ\nНЕТ"},null,{"$f":"IF(C9=\"1) Рекогносцировка мест постановки нивелира и реек       2) Нивелирование III класса\",\"1 станция  1 штатив двойного хода\",IF(C9=\"Плановая и высотная привязка при расстоянии между точками,м: до 50м\",\"1 точка\",\"НЕТ\"))","v":"НЕТ"},5,25,{"$f":"IF(D9=\"1 станция  1 штатив двойного хода\",\"130 \n189/84\",E9*F9)","v":125},{"$f":"IF(C9=\"Плановая и высотная привязка при расстоянии между точками,м: до 50м\",\"СБЦ-2001 гл.7, п.9, табл.48\",\"СБЦ общ. положения, гл.2. табл.9\")","v":"СБЦ общ. положения, гл.2. табл.9"},1,1.25,1.1499999999999999,1.3,1.2,1.08,3.79,null,{"$f":"IF(D9=\"1 станция  1 штатив двойного хода\",2390.39,G9*I9*J9*K9*L9*M9*N9*O9)","v":1147.3800000000001}]

{"sheet":"Отчет Октябрь","index":3,"n_rows":10,"n_cols":9,"rows_kept":10,"cut":false,"hidden":false,"merged":[[7,1,7,9],[4,1,4,2],[4,3,5,3],[4,4,5,4],[4,5,5,5],[4,6,5,6],[4,7,4,9]]}
[]
[]
[]
["Отчёт группы генплана, транспорта и геодезических работ за октябрь 2015г."]
[null,"Основание",null,"Статья затрат","Наименование работы","№ проекта","№ сопроводительного документа и дата выдачи заказчику","Примечание "]
["№ п/п","Номер задания, дата","Заказчик",null,null,null,null," Процент выполнения от плана, причина отклонения)","Исполнитель\n\nСмета\n\nФормат"]
[1,2,3,4,5,6,7,8,9]
[null,"Группа генплана, транспорта и геодезических работ"]
[null,{"$f":"IF(ЗАДАНИЯ!N4=\"октябрь\",ЗАДАНИЯ!E4,\"НЕТ\")","v":"НЕТ"},{"$f":"IF(ЗАДАНИЯ!N4=\"октябрь\",ЗАДАНИЯ!C4,\"НЕТ\")","v":"НЕТ"},null,{"$f":"IF(ЗАДАНИЯ!N4=\"октябрь\",ЗАДАНИЯ!D4,\"НЕТ\")","v":"НЕТ"},{"$f":"IF(ЗАДАНИЯ!N4=\"октябрь\",ЗАДАНИЯ!J4,\"НЕТ\")","v":"НЕТ"},{"$f":"IF(ЗАДАНИЯ!N4=\"октябрь\",ЗАДАНИЯ!I4,\"НЕТ\")","v":"НЕТ"},{"$f":"IF(ЗАДАНИЯ!N4=\"октябрь\",ЗАДАНИЯ!H4,\"НЕТ\")","v":"НЕТ"},{"$f":"CONCATENATE(ЗАДАНИЯ!G4,\" \n\",'Сметы Октябрь'!Q9)","v":"ИВАНОВ \n917,9"}]
[null,{"$f":"IF(ЗАДАНИЯ!N5=\"октябрь\",ЗАДАНИЯ!E5,\"НЕТ\")","v":"НЕТ"},{"$f":"IF(ЗАДАНИЯ!N5=\"октябрь\",ЗАДАНИЯ!C5,\"НЕТ\")","v":"НЕТ"},null,{"$f":"IF(ЗАДАНИЯ!N5=\"октябрь\",ЗАДАНИЯ!D5,\"НЕТ\")","v":"НЕТ"},{"$f":"IF(ЗАДАНИЯ!N5=\"октябрь\",ЗАДАНИЯ!J5,\"НЕТ\")","v":"НЕТ"},{"$f":"IF(ЗАДАНИЯ!N5=\"октябрь\",ЗАДАНИЯ!I5,\"НЕТ\")","v":"НЕТ"},{"$f":"IF(ЗАДАНИЯ!N5=\"октябрь\",ЗАДАНИЯ!H5,\"НЕТ\")","v":"НЕТ"}]

{"sheet":"Сметы Октябрь","index":4,"n_rows":9,"n_cols":21,"rows_kept":9,"cut":false,"hidden":false,"merged":[[5,0,5,19]]}
[null,null,null,null,null,null,null,null," ",null," "," "," "," ",null,null,"Исполнитель","Формат","Стоимость по СБЦ(р)","Стоимость по ЕНВ и Р"]
[null,null,null,null,null,null,null,null," ",null," "," "," "," ",null,null,"1. У",null,{"$f":"SUM(R9:R22)","v":0},0]
[null,null,null,null,null,null,null,null," ",null," "," "," "," ",null,null,"2. Д",null,{"$f":"SUM(S9:S22)","v":0},0]
[null,null,null,null,null,null,null,null," ",null," "," "," "," ",null,null,"3. С",null,{"$f":"SUM(T9:T22)","v":0},0]
[null,null,null,null,null,null,null,null," ",null," "," "," "," ",null,null,"Итого по гр.:",{"$f":"SUM(S2:S4,T2:T4)","v":0}]
["СМЕТЫ ОКТЯБРЬ 2015"]
[null,null,null,null,null,null,null,null," ",null," "," "," "," ",null,null,{"$f":"SUM(Q9:Q24)","v":917.9},{"$f":"SUM(R9:R22)","v":0},{"$f":"SUM(S9:S22)","v":0},{"$f":"SUM(T9:T22)","v":0}]
["№","Объект"," Наименование работ","Измерит.","Кол-во","Цена (категория сложности III)","Сумма в ценах 2001г.","Обоснование"," k1","k2"," k3"," k4","  k5"," k6"," k7","Пояснения","Сметная стоимость = (сумма в ценах 2001г.)*k1*k2*k3*k4*k5*k6*k7 ","У","Д","С","Тип"]
[1,{"$f":"CONCATENATE('Отчет Октябрь'!C9,\"\n\",'Отчет Октябрь'!E9)","v":"НЕТ\nНЕТ"},null,{"$f":"IF(C9=\"1) Рекогносцировка мест постановки нивелира и реек       2) Нивелирование III класса\",\"1 станция  1 штатив двойного хода\",IF(C9=\"Плановая и высотная привязка при расстоянии между точками,м: до 50м\",\"1 точка\",\"НЕТ\"))","v":"НЕТ"},10,10,{"$f":"IF(D9=\"1 станция  1 штатив двойного хода\",\"130 \n189/84\",E9*F9)","v":100},{"$f":"IF(C9=\"Плановая и высотная привязка при расстоянии между точками,м: до 50м\",\"СБЦ-2001 гл.7, п.9, табл.48\",\"СБЦ общ. положения, гл.2. табл.9\")","v":"СБЦ общ. положения, гл.2. табл.9"},1,1.25,1.1499999999999999,1.3,1.2,1.08,3.79,null,{"$f":"IF(D9=\"1 станция  1 штатив двойного хода\",2390.39,G9*I9*J9*K9*L9*M9*N9*O9)","v":917.9}]